bitfinex/quotes_BTCUSD_20250109
["timestamp","ask_amount","ask_price","bid_price","bid_amount"]
[1736404713952,1.18012305,94426.0,94425.0,6e-07]
[1736404714152,1.23468305,94426.0,94425.0,6e-07]
[1736404716366,0.273,94425.0,94400.0,0.0816982]
[1736404716516,0.023,94402.0,94400.0,0.0816982]
[1736404716722,0.211862,94401.0,94400.0,0.0816982]
[1736404716988,0.27105711,94401.0,94400.0,0.0816982]
[1736404717265,0.01659569,94401.0,94400.0,0.0816982]
[1736404717473,0.211846,94409.0,94401.0,0.0771]
[1736404717672,0.211848,94407.0,94401.0,0.0771]
[1736404718935,0.211848,94407.0,94401.0,0.0781]
[1736404719381,0.05919511,94405.0,94401.0,0.0781]
[1736404719837,0.211848,94407.0,94401.0,0.0781]
[1736404720051,0.212848,94407.0,94401.0,0.0781]
[1736404720363,0.211848,94407.0,94401.0,0.0781]
[1736404720729,0.211848,94407.0,94401.0,0.0771]
[1736404721050,0.211848,94407.0,94401.0,0.0781]
[1736404721678,0.211848,94407.0,94401.0,0.0771]
[1736404721815,0.211853,94405.0,94401.0,0.0781]
[1736404722460,0.211853,94405.0,94401.0,0.0771]
[1736404722854,0.211853,94405.0,94401.0,0.0781]
[1736404723833,0.211848,94407.0,94401.0,0.0781]
[1736404724034,0.00049861,94409.0,94402.0,0.0773]
[1736404724349,0.00049861,94409.0,94404.0,0.0773]
[1736404725136,0.211848,94407.0,94404.0,0.0773]
[1736404725439,0.47369393,94407.0,94404.0,0.0773]
[1736404725643,0.234853,94405.0,94404.0,0.0773]
[1736404726055,0.234853,94405.0,94404.0,0.0783]
[1736404727295,0.211853,94405.0,94404.0,0.0783]
[1736404727701,0.211853,94405.0,94404.0,0.0773]
[1736404727901,0.211853,94405.0,94404.0,0.0783]
[1736404728485,0.023,94413.0,94404.0,0.0773]
[1736404728701,0.211853,94405.0,94404.0,0.07835012]
[1736404729304,0.023,94415.0,94404.0,0.07835012]
[1736404729530,0.211849,94407.0,94404.0,0.07735012]
[1736404729960,0.023,94415.0,94404.0,0.07735012]
[1736404729961,0.002,94413.0,94404.0,0.09008495]
[1736404730158,0.01659478,94407.0,94406.0,0.1223]
[1736404730337,0.2118,94429.0,94408.0,0.0765]
[1736404730532,0.2118,94429.0,94412.0,0.0765]
[1736404730751,0.003,94415.0,94414.0,0.0765]
[1736404730955,0.2118,94429.0,94414.0,0.0765]
[1736404731162,0.211792,94432.0,94414.0,0.0765]
[1736404731163,0.211817,94421.0,94414.0,0.0765]
[1736404732852,0.211817,94421.0,94414.0,0.0775]
[1736404733351,0.01659276,94420.0,94414.0,0.0775]
[1736404734673,0.01659276,94420.0,94414.0,0.0765]
[1736404735228,0.01659276,94420.0,94414.0,0.0785]
[1736404737309,0.211817,94421.0,94414.0,0.0785]
[1736404738120,0.211792,94432.0,94414.0,0.0785]
[1736404738121,0.211804,94427.0,94414.0,0.0785]
[1736404738472,0.211804,94427.0,94415.0,0.0766]
[1736404738645,0.211792,94432.0,94415.0,0.0766]
[1736404738847,0.423616,94425.0,94415.0,0.0766]
[1736404739649,0.423616,94425.0,94415.0,0.0776]
[1736404739831,0.211808,94425.0,94415.0,0.0776]
[1736404741466,0.211817,94421.0,94415.0,0.0776]
[1736404742329,0.211817,94421.0,94415.0,0.0766]
[1736404742757,0.211817,94421.0,94415.0,0.0786]
[1736404743753,0.05472,94438.0,94415.0,0.07965906]
[1736404743961,0.05472,94438.0,94415.0,0.07965898]
[1736404744405,0.234781,94437.0,94416.0,0.423655]
[1736404744615,0.211793,94432.0,94418.0,0.0754]
[1736404744833,0.211793,94432.0,94419.0,0.08375898]
[1736404745251,0.01659193,94429.0,94421.0,0.0827]
[1736404745459,0.01659193,94429.0,94422.0,0.21287391]
[1736404745666,0.01659193,94429.0,94423.0,0.0827]
[1736404745868,0.023,94439.0,94423.0,0.0827]
[1736404746074,0.023,94437.0,94423.0,0.0827]
[1736404746216,0.211804,94427.0,94423.0,0.0827]
[1736404746412,0.211806,94426.0,94423.0,0.0827]
[1736404747138,0.211808,94425.0,94424.0,0.2]
[1736404747539,0.423534,94443.0,94424.0,0.2]
[1736404747740,0.211801,94429.0,94424.0,0.2]
[1736404749132,0.211801,94429.0,94424.0,0.202]
[1736404750150,0.211801,94429.0,94424.0,0.23047]
[1736404750387,0.01659208,94428.0,94424.0,0.23047]
[1736404750587,0.01659208,94428.0,94424.0,0.202]
[1736404751334,0.211801,94429.0,94424.0,0.2]
[1736404751731,0.211801,94429.0,94424.0,0.202]
[1736404752150,0.211801,94429.0,94424.0,0.2]
[1736404752520,0.211781,94438.0,94424.0,0.2]
[1736404752521,0.211781,94438.0,94432.0,0.0814]
[1736404753707,0.211781,94438.0,94433.0,0.1]
[1736404753904,0.211696,94475.0,94433.0,0.1]
[1736404754107,0.211781,94437.0,94434.0,0.02307]
[1736404754307,0.211775,94440.0,94437.0,0.0766]
[1736404754522,0.211765,94445.0,94439.0,0.0766]
[1736404754725,0.211765,94445.0,94441.0,0.1]
[1736404754927,0.211747,94452.0,94441.0,0.096]
[1736404755330,0.423495,94452.0,94441.0,0.096]
[1736404755557,0.423495,94452.0,94441.0,0.091]
[1736404755964,0.211747,94452.0,94441.0,0.091]
[1736404756312,0.211757,94448.0,94441.0,0.091]
[1736404757951,0.211757,94448.0,94441.0,0.092]
[1736404758464,0.211767,94444.0,94441.0,0.092]
[1736404758672,0.211767,94444.0,94441.0,0.001]
[1736404758869,0.211767,94444.0,94441.0,0.092]
[1736404759027,0.211757,94448.0,94441.0,0.001]
[1736404759575,0.01658989,94447.0,94441.0,0.091]
[1736404759940,0.01658989,94447.0,94441.0,0.092]
[1736404760477,0.211757,94448.0,94441.0,0.092]
[1736404760974,0.211757,94448.0,94441.0,0.093]
[1736404761151,0.211757,94448.0,94441.0,0.092]
[1736404761377,0.211757,94448.0,94441.0,0.091]
[1736404761540,0.212757,94448.0,94441.0,0.091]
[1736404762195,0.212757,94448.0,94439.0,0.07665012]
[1736404762402,0.14675016,94447.0,94439.0,0.07665012]
[1736404762581,0.211772,94442.0,94439.0,0.07665012]
[1736404763399,0.001,94448.0,94442.0,0.091]
[1736404763765,0.001,94448.0,94440.0,0.1483]
[1736404763766,0.001,94448.0,94443.0,0.1734]
[1736404764342,0.211747,94453.0,94443.0,0.1734]
[1736404764588,0.001,94447.0,94443.0,0.1734]
[1736404764964,0.211747,94453.0,94444.0,0.0824]
[1736404765185,0.211736,94458.0,94447.0,0.0824]
[1736404765751,0.211736,94458.0,94449.0,0.0807]
[1736404766175,0.211727,94462.0,94449.0,0.0807]
[1736404766386,0.211729,94460.0,94449.0,0.0807]
[1736404766563,0.211727,94462.0,94452.0,0.091]
[1736404766767,0.211727,94462.0,94455.0,0.0807]
[1736404767556,0.003,94458.0,94455.0,0.0807]
[1736404767759,0.211727,94462.0,94455.0,0.0807]
[1736404768166,0.216727,94462.0,94455.0,0.0817]
[1736404768537,0.211727,94462.0,94455.0,0.0807]
[1736404768924,0.003,94458.0,94455.0,0.0807]
[1736404769132,0.212727,94462.0,94455.0,0.0807]
[1736404769509,0.216727,94462.0,94455.0,0.0807]
[1736404769777,0.211729,94460.0,94455.0,0.0807]
[1736404771105,0.001,94458.0,94455.0,0.0807]
[1736404771363,0.211736,94457.0,94455.0,0.0807]
[1736404771576,0.33730866,94457.0,94455.0,0.0807]
[1736404772826,0.33730866,94457.0,94455.0,0.0817]
[1736404773318,0.33730866,94457.0,94455.0,0.0807]
[1736404773562,0.33730866,94457.0,94455.0,0.0817]
[1736404774095,0.33730866,94457.0,94455.0,0.0807]
[1736404774363,0.05490377,94456.0,94440.0,0.0817]
[1736404774661,0.12729976,94455.0,94440.0,0.0817]
[1736404774902,0.211765,94445.0,94440.0,0.0817]
[1736404775996,0.211767,94444.0,94440.0,0.0827]
[1736404776195,0.023,94447.0,94440.0,0.0827]
[1736404776400,0.211768,94443.0,94440.0,0.0857]
[1736404776834,0.211768,94443.0,94440.0,0.0887]
[1736404777273,0.211768,94443.0,94440.0,0.0857]
[1736404778128,0.211768,94443.0,94440.0,0.0877]
[1736404778354,0.211768,94443.0,94440.0,0.0837]
[1736404778596,0.211768,94443.0,94440.0,0.0867]
[1736404779067,0.211768,94443.0,94440.0,0.0837]
[1736404779503,0.211768,94443.0,94440.0,0.0817]
[1736404779709,0.211768,94443.0,94440.0,0.0827]
[1736404781161,0.211757,94448.0,94440.0,0.0827]
[1736404782595,0.211768,94443.0,94440.0,0.0817]
[1736404783774,0.211768,94443.0,94440.0,0.0827]
[1736404784782,0.211772,94441.0,94440.0,0.0827]
[1736404785816,0.211772,94441.0,94440.0,0.0817]
[1736404785993,0.211772,94441.0,94440.0,0.0827]
[1736404786427,0.211772,94441.0,94440.0,0.0837]
[1736404788000,0.211772,94441.0,94417.0,0.0108495]
[1736404788001,0.211833,94414.0,94411.0,0.09518887]
[1736404788198,0.15,94411.0,94389.0,0.091]
[1736404788396,0.211846,94408.0,94405.0,0.10226082]
[1736404788602,0.36185,94406.0,94405.0,0.10226082]
[1736404788803,0.46614976,94406.0,94405.0,5.012e-05]
[1736404789019,0.52675183,94406.0,94405.0,5.012e-05]
[1736404789220,0.49986273,94406.0,94405.0,5.012e-05]
[1736404789425,0.49764739,94406.0,94405.0,5.012e-05]
[1736404789623,0.37034763,94406.0,94405.0,0.02398923]
[1736404790033,0.15849763,94406.0,94405.0,0.00105012]
[1736404790186,0.00849763,94406.0,94405.0,0.00105012]
[1736404790587,0.211817,94421.0,94408.0,0.091]
[1736404790785,0.211835,94413.0,94408.0,0.091]
[1736404791212,0.211835,94413.0,94408.0,0.09]
[1736404791847,0.213835,94413.0,94408.0,0.09]
[1736404792050,0.09467481,94409.0,94408.0,0.09]
[1736404792952,0.211846,94408.0,94405.0,5.012e-05]
[1736404793157,0.31614576,94408.0,94405.0,5.012e-05]
[1736404793372,0.52799176,94408.0,94405.0,5.012e-05]
[1736404794504,0.21185,94406.0,94405.0,5.012e-05]
[1736404795602,0.21285,94406.0,94405.0,5.012e-05]
[1736404795896,0.31259719,94406.0,94405.0,0.00020912]
[1736404797075,0.40707575,94406.0,94405.0,0.00020912]
[1736404798119,0.40607575,94406.0,94405.0,0.00020912]
[1736404798298,0.40707575,94406.0,94405.0,0.00020912]
[1736404798527,0.53437551,94406.0,94405.0,5.012e-05]
[1736404798728,0.53337551,94406.0,94405.0,5.012e-05]
[1736404798926,0.68437551,94406.0,94405.0,5.012e-05]
[1736404799555,0.58989695,94406.0,94405.0,5.012e-05]
[1736404799762,0.93845109,94406.0,94405.0,5.012e-05]
[1736404800359,0.211882,94392.0,94385.0,0.09]
[1736404800564,0.211855,94404.0,94393.0,0.09]
[1736404800771,0.211873,94396.0,94393.0,0.09]
[1736404801196,0.211873,94396.0,94391.0,0.00014923]
[1736404801370,0.211862,94401.0,94393.0,0.09]
[1736404801511,0.00691981,94395.0,94393.0,0.09]
[1736404801925,0.21879681,94394.0,94393.0,0.09]
[1736404803042,0.21879681,94394.0,94391.0,0.00014923]
[1736404803522,0.00691981,94394.0,94393.0,0.09]
[1736404804183,0.21188,94393.0,94391.0,0.00014923]
[1736404804390,0.03779803,94392.0,94391.0,0.00014923]
[1736404804595,0.00690574,94392.0,94391.0,0.00014923]
[1736404804807,0.1342055,94392.0,94391.0,0.00014923]
[1736404805233,0.211913,94378.0,94377.0,8.53e-05]
[1736404805448,0.48921276,94378.0,94377.0,0.00058391]
[1736404805654,0.54730146,94378.0,94377.0,0.00058391]
[1736404806064,0.49607281,94378.0,94377.0,0.00058391]
[1736404806269,0.55123281,94378.0,94377.0,0.00058391]
[1736404807119,0.49607281,94378.0,94377.0,0.00058391]
[1736404807328,0.89906318,94378.0,94377.0,0.00058391]
[1736404807554,0.90306318,94378.0,94377.0,0.00058391]
[1736404807754,0.89906318,94378.0,94377.0,0.00058391]
[1736404807966,0.211925,94373.0,94367.0,8.53e-05]
[1736404808159,0.33922476,94373.0,94367.0,8.53e-05]
[1736404808576,0.34604751,94373.0,94367.0,8.53e-05]
[1736404808778,0.34841211,94373.0,94367.0,8.53e-05]
[1736404809210,0.49841211,94373.0,94367.0,8.53e-05]
[1736404809747,0.50041211,94373.0,94367.0,8.53e-05]
[1736404809941,0.49804751,94373.0,94367.0,8.53e-05]
[1736404810178,0.49841211,94373.0,94367.0,8.53e-05]
[1736404810372,0.50441211,94373.0,94367.0,8.53e-05]
[1736404810579,0.56157211,94373.0,94367.0,8.53e-05]
[1736404810779,0.55557211,94373.0,94367.0,8.53e-05]
[1736404810980,0.56157211,94373.0,94367.0,8.53e-05]
[1736404811180,0.50641211,94373.0,94367.0,8.53e-05]
[1736404811382,0.50041211,94373.0,94367.0,8.53e-05]
[1736404811580,0.173,94372.0,94367.0,8.53e-05]
[1736404811781,0.211936,94368.0,94367.0,8.53e-05]
[1736404812204,0.21873077,94368.0,94367.0,8.53e-05]
[1736404812404,0.00679477,94368.0,94367.0,8.53e-05]
[1736404813080,0.211929,94371.0,94367.0,8.53e-05]
[1736404813283,0.00779477,94368.0,94367.0,8.53e-05]
[1736404813399,0.001,94368.0,94367.0,8.53e-05]
[1736404813608,0.00679477,94368.0,94367.0,8.53e-05]
[1736404813802,0.211929,94371.0,94367.0,8.53e-05]
[1736404814054,0.00679474,94368.0,94367.0,8.53e-05]
[1736404814265,0.211929,94371.0,94367.0,8.53e-05]
[1736404814476,0.00879474,94368.0,94367.0,8.53e-05]
[1736404814775,0.211929,94371.0,94367.0,8.53e-05]
[1736404814983,0.00679474,94368.0,94367.0,8.53e-05]
[1736404815363,0.211929,94371.0,94367.0,8.53e-05]
[1736404815681,0.212929,94371.0,94367.0,8.53e-05]
[1736404815839,0.00679473,94370.0,94367.0,8.53e-05]
[1736404816043,0.211934,94369.0,94367.0,8.53e-05]
[1736404816290,0.21864876,94369.0,94367.0,8.53e-05]
[1736404816668,0.21864876,94369.0,94244.0,0.4]
[1736404816987,0.21864876,94369.0,94354.0,0.2625301]
[1736404817405,0.22064876,94369.0,94354.0,0.2625301]
[1736404817858,0.21864876,94369.0,94354.0,0.2625301]
[1736404818126,0.22064876,94369.0,94354.0,0.2625301]
[1736404818332,0.22064876,94369.0,94354.0,0.211966]
[1736404819706,0.22064876,94369.0,94276.0,0.09492006]
[1736404819965,0.21864876,94369.0,94352.0,0.211972]
[1736404820179,0.21964876,94369.0,94352.0,0.211972]
[1736404820953,0.21864876,94369.0,94352.0,0.211972]
[1736404821364,0.21964876,94369.0,94352.0,0.211972]
[1736404821566,0.21964876,94369.0,94352.0,0.2625367]
[1736404821890,0.00771476,94369.0,94352.0,0.0505647]
[1736404822063,0.00771476,94369.0,94365.0,0.211941]
[1736404822270,0.001,94369.0,94366.0,0.08185958]
[1736404822479,0.001,94369.0,94367.0,0.211938]
[1736404822730,0.001,94369.0,94368.0,0.00105955]
[1736404823179,0.09413267,94387.0,94369.0,0.211934]
[1736404823398,0.09413267,94387.0,94373.0,0.211924]
[1736404823825,0.211893,94388.0,94373.0,0.211924]
[1736404824996,0.211882,94393.0,94373.0,0.211924]
[1736404825387,0.423764,94393.0,94375.0,0.21192]
[1736404825596,0.21189,94389.0,94375.0,0.21192]
[1736404826010,0.211882,94393.0,94375.0,0.21192]
[1736404826209,0.211882,94393.0,94377.0,0.211916]
[1736404826647,0.211882,94393.0,94376.0,0.1209]
[1736404826847,0.00149841,94378.0,94376.0,0.1209]
[1736404827080,0.00049841,94378.0,94376.0,0.1209]
[1736404827996,0.00149841,94378.0,94376.0,0.1209]
[1736404828369,0.00149841,94378.0,94377.0,0.001]
[1736404828972,0.00149841,94378.0,94376.0,0.1209]
[1736404829196,0.00049841,94378.0,94377.0,0.211916]
[1736404829619,0.00149841,94378.0,94377.0,0.211916]
[1736404829856,0.00049841,94378.0,94377.0,0.211916]
[1736404830281,0.00149841,94378.0,94377.0,0.211916]
[1736404830581,0.00049841,94378.0,94377.0,0.211916]
[1736404831010,0.00149841,94378.0,94377.0,0.211916]
[1736404831818,0.00149841,94378.0,94377.0,0.213916]
[1736404832641,0.00149841,94378.0,94377.0,0.002]
[1736404833090,0.00149841,94378.0,94377.0,0.00305952]
[1736404833527,0.00149841,94378.0,94377.0,0.10735928]
[1736404834786,0.00149841,94378.0,94377.0,0.18735928]
[1736404835270,0.00149841,94378.0,94377.0,0.66315928]
[1736404835498,0.00149841,94378.0,94377.0,0.66209976]
[1736404835960,0.00149841,94378.0,94377.0,0.69512479]
[1736404836184,0.00049841,94378.0,94377.0,0.69312479]
[1736404836600,0.00149841,94378.0,94377.0,0.66009976]
[1736404836922,0.00149841,94378.0,94377.0,0.66209976]
[1736404838455,0.00149841,94378.0,94377.0,0.66009976]
[1736404838657,0.00149841,94378.0,94377.0,0.66509976]
[1736404839440,0.00149841,94378.0,94377.0,0.76939952]
[1736404839641,0.00149841,94378.0,94377.0,0.76839855]
[1736404841228,0.00149841,94378.0,94377.0,0.66409879]
[1736404841482,0.00149841,94378.0,94377.0,0.51409879]
[1736404842245,0.00049841,94378.0,94377.0,0.50909879]
[1736404842670,0.00149841,94378.0,94377.0,0.51709879]
[1736404844731,0.00149841,94378.0,94377.0,0.4138]
[1736404845720,0.00149841,94378.0,94377.0,0.084]
[1736404845891,0.00149841,94378.0,94377.0,0.085]
[1736404846077,0.00049841,94378.0,94377.0,0.081]
[1736404846525,0.00049841,94378.0,94377.0,0.08]
[1736404846731,0.00049841,94378.0,94377.0,0.15663683]
[1736404846942,0.00049841,94378.0,94377.0,0.08505953]
[1736404847107,0.00049841,94378.0,94377.0,0.08305953]
[1736404847651,0.00049841,94378.0,94377.0,0.08705953]
[1736404848268,0.00049841,94378.0,94377.0,0.08505953]
[1736404848471,0.00049841,94378.0,94377.0,0.08605953]
[1736404848764,0.00049841,94378.0,94377.0,0.08205953]
[1736404848966,0.00049841,94378.0,94377.0,0.081]
[1736404849173,0.00049841,94378.0,94377.0,0.084]
[1736404849392,0.00049841,94378.0,94377.0,0.082]
[1736404849704,0.00049841,94378.0,94377.0,0.084]
[1736404849928,0.00049841,94378.0,94377.0,0.08]
[1736404850129,0.00049841,94378.0,94377.0,0.082]
[1736404850335,0.00049841,94378.0,94377.0,0.084]
[1736404850534,0.00049841,94378.0,94377.0,0.082]
[1736404851390,0.00049841,94378.0,94377.0,0.08]
[1736404851802,0.00049841,94378.0,94377.0,0.082]
[1736404852009,0.00149841,94378.0,94377.0,0.086]
[1736404852260,0.00149841,94378.0,94377.0,0.006]
[1736404856459,0.00149841,94378.0,94377.0,0.004]
[1736404856871,0.00049841,94378.0,94377.0,0.001]
[1736404857093,0.00049841,94378.0,94377.0,0.003]
[1736404857303,0.00049841,94378.0,94377.0,0.002]
[1736404858634,0.00049841,94378.0,94375.0,0.211919]
[1736404858910,0.00049841,94378.0,94377.0,0.003]
[1736404859108,0.00049841,94378.0,94375.0,0.211919]
[1736404859318,0.00049841,94378.0,94377.0,0.002]
[1736404859523,0.00765029,94378.0,94377.0,0.005]
[1736404859904,0.00765029,94378.0,94377.0,0.003]
[1736404860230,0.00765029,94378.0,94377.0,0.005]
[1736404863762,0.00049841,94378.0,94377.0,0.005]
[1736404864698,0.00765022,94378.0,94377.0,0.005]
[1736404866993,0.00765022,94378.0,94377.0,0.00605957]
[1736404867204,0.00765022,94378.0,94377.0,0.08495947]
[1736404867417,0.00765022,94378.0,94377.0,0.18819976]
[1736404867651,0.00765022,94378.0,94377.0,0.23759976]
[1736404867855,0.00049841,94378.0,94377.0,0.23759976]
[1736404868766,0.00049841,94378.0,94377.0,0.71339976]
[1736404868950,0.00049841,94378.0,94377.0,1.49558928]
[1736404869286,0.00049841,94378.0,94377.0,1.38628952]
[1736404869730,0.00149841,94378.0,94377.0,1.29328952]
[1736404869951,0.00049841,94378.0,94377.0,1.38928952]
[1736404870255,0.00149841,94378.0,94377.0,1.39028952]
[1736404870487,0.00249841,94378.0,94377.0,1.39428952]
[1736404870729,0.00249841,94378.0,94377.0,1.29428952]
[1736404871553,0.00149841,94378.0,94377.0,1.29028952]
[1736404871837,0.00049841,94378.0,94377.0,1.28628952]
[1736404872265,0.00149841,94378.0,94377.0,1.25819976]
[1736404872477,0.00249841,94378.0,94377.0,1.26719976]
[1736404872656,0.00149841,94378.0,94377.0,0.71739976]
[1736404872870,0.00049841,94378.0,94377.0,0.70839976]
[1736404873087,0.00049841,94378.0,94377.0,0.6081]
[1736404873448,0.00049841,94378.0,94377.0,0.6041]
[1736404873651,0.00149841,94378.0,94377.0,0.6131]
[1736404873953,0.00149841,94378.0,94377.0,0.6171]
[1736404874952,0.00049841,94378.0,94377.0,0.6081]
[1736404875377,0.00149841,94378.0,94377.0,0.6151]
[1736404875698,0.00149841,94378.0,94377.0,0.6111]
[1736404876141,0.00049841,94378.0,94377.0,0.71239976]
[1736404876296,0.00149841,94378.0,94377.0,0.71939976]
[1736404876492,0.00149841,94378.0,94377.0,0.81969952]
[1736404876701,0.00049841,94378.0,94377.0,0.81669952]
[1736404877229,0.00049841,94378.0,94377.0,0.8497867]
[1736404877431,0.00049841,94378.0,94377.0,0.8457867]
[1736404877631,0.00049841,94378.0,94377.0,0.9507867]
[1736404878037,0.00149841,94378.0,94377.0,0.9577867]
[1736404878466,0.00149841,94378.0,94377.0,0.85348694]
[1736404878626,0.00149841,94378.0,94377.0,1.39828694]
[1736404878826,0.00149841,94378.0,94377.0,1.49828694]
[1736404880593,0.00149841,94378.0,94377.0,1.39828694]
[1736404880840,0.00149841,94378.0,94377.0,1.29828694]
[1736404880987,0.00149841,94378.0,94377.0,1.39828694]
[1736404881192,0.00149841,94378.0,94377.0,1.29828694]
[1736404881646,0.00149841,94378.0,94377.0,1.26519976]
[1736404882460,0.00149841,94378.0,94377.0,1.06579976]
[1736404883500,0.00149841,94378.0,94377.0,0.9615]
[1736404884586,0.00149841,94378.0,94377.0,0.4167]
[1736404899968,0.00149841,94378.0,94377.0,0.67099976]
[1736404900193,0.00149841,94378.0,94377.0,0.77099976]
[1736404900378,0.00149841,94378.0,94377.0,0.85329074]
[1736404901864,0.00149841,94378.0,94377.0,0.75329074]
[1736404902661,0.00149841,94378.0,94377.0,0.74829074]
[1736404903212,0.00249841,94378.0,94377.0,0.75329074]
[1736404903417,0.00249841,94378.0,94377.0,0.8575905]
[1736404903824,0.00149841,94378.0,94377.0,0.8505905]
[1736404904043,0.00049841,94378.0,94377.0,0.8455905]
[1736404904243,0.00149841,94378.0,94377.0,0.8545905]
[1736404904415,0.00049841,94378.0,94377.0,0.8455905]
[1736404904648,0.00049841,94378.0,94377.0,0.8545905]
[1736404904877,0.00149841,94378.0,94377.0,0.8545905]
[1736404905437,0.00149841,94378.0,94377.0,0.8585905]
[1736404905640,0.00149841,94378.0,94377.0,0.75429074]
[1736404905814,0.00149841,94378.0,94377.0,0.72119976]
[1736404905969,0.00149841,94378.0,94377.0,0.71719976]
[1736404906179,0.00149841,94378.0,94377.0,0.75429937]
[1736404906383,0.00149841,94378.0,94377.0,0.75430015]
[1736404906689,0.00149841,94378.0,94377.0,0.52199976]
[1736404909431,0.00149841,94378.0,94377.0,0.62629952]
[1736404911186,0.00149841,94378.0,94377.0,0.52199976]
[1736404911411,0.00149841,94378.0,94377.0,0.3388]
[1736404927035,0.00149841,94378.0,94377.0,0.67389976]
[1736404927444,0.00149841,94378.0,94377.0,0.70700974]
[1736404932213,0.00149841,94378.0,94377.0,0.80700974]
[1736404932423,0.00149841,94378.0,94377.0,0.9563095]
[1736404932621,0.00149841,94378.0,94377.0,1.5011095]
[1736404932998,0.00149841,94378.0,94377.0,1.4971095]
[1736404933404,0.00149841,94378.0,94377.0,1.5021095]
[1736404933734,0.00049841,94378.0,94377.0,1.4881095]
[1736404933938,0.00049841,94378.0,94377.0,1.4971095]
[1736404934174,0.00149841,94378.0,94377.0,1.5031095]
[1736404934343,0.00149841,94378.0,94377.0,1.4941095]
[1736404934554,0.00149841,94378.0,94377.0,1.5031095]
[1736404935961,4.1e-07,94378.0,94377.0,1.6031095]
[1736404941544,4.1e-07,94378.0,94377.0,1.7933495]
[1736404941760,0.0001706,94407.0,94403.0,0.1]
[1736404941971,0.0001706,94407.0,94404.0,0.16099882]
[1736404942394,0.0001706,94407.0,94405.0,0.4072]
[1736404942544,0.0001706,94407.0,94406.0,0.31720882]
[1736404942745,0.0001706,94407.0,94406.0,0.46614976]
[1736404942946,0.0001706,94407.0,94406.0,0.57044952]
[1736404943937,0.0001706,94407.0,94406.0,0.57344952]
[1736404944148,0.0001706,94407.0,94406.0,0.65574952]
[1736404944589,0.0001706,94407.0,94406.0,0.64574952]
[1736404944785,0.0001706,94407.0,94406.0,0.54944976]
[1736404945205,0.0001706,94407.0,94406.0,0.54144976]
[1736404946125,0.0001706,94407.0,94406.0,0.52478976]
[1736404946632,0.0001706,94407.0,94406.0,0.53078976]
[1736404946780,0.0001706,94407.0,94406.0,0.47914976]
[1736404946980,0.0001706,94407.0,94406.0,0.47014976]
[1736404947222,0.0001706,94407.0,94406.0,0.47814976]
[1736404947427,0.0001706,94407.0,94406.0,0.47414976]
[1736404947578,0.0001706,94407.0,94406.0,0.79494976]
[1736404947785,0.0001706,94407.0,94406.0,0.80194976]
[1736404948420,0.0001706,94407.0,94406.0,0.54765]
[1736404949068,0.0001706,94407.0,94406.0,0.54465]
[1736404949270,0.0001706,94407.0,94406.0,0.54765]
[1736404949721,0.0001706,94407.0,94406.0,0.54065]
[1736404949929,0.0001706,94407.0,94406.0,0.53765]
[1736404950129,0.0001706,94407.0,94406.0,0.54465]
[1736404950305,0.0001706,94407.0,94406.0,0.64394976]
[1736404950682,0.0001706,94407.0,94406.0,0.64494976]
[1736404951091,0.0001706,94407.0,94406.0,0.64694976]
[1736404951522,0.0001706,94407.0,94406.0,0.64394976]
[1736404951976,0.0001706,94407.0,94406.0,0.53965]
[1736404952628,0.0001706,94407.0,94406.0,0.53765]
[1736404952830,0.0001706,94407.0,94403.0,6.394e-05]
[1736404953037,0.0462706,94407.0,94406.0,0.006]
[1736404953246,0.0462706,94407.0,94403.0,6.394e-05]
[1736404953458,0.0805,94406.0,94403.0,6.394e-05]
[1736404955954,0.0815,94406.0,94403.0,6.394e-05]
[1736404961312,0.001,94406.0,94403.0,6.394e-05]
[1736404961514,0.001,94406.0,94404.0,0.211855]
[1736404962936,0.0001706,94407.0,94404.0,0.42371]
[1736404963781,0.01676531,94407.0,94404.0,0.42571]
[1736404964049,0.01676531,94407.0,94406.0,0.21185]
[1736404964660,0.0001706,94407.0,94406.0,0.21185]
[1736404966410,0.0001706,94407.0,94406.0,0.21385]
[1736404966588,0.0001706,94407.0,94406.0,0.21185]
[1736404966989,0.0001706,94407.0,94406.0,0.21385]
[1736404967245,0.0001706,94407.0,94406.0,0.21485]
[1736404968598,0.0001706,94407.0,94406.0,0.54065]
[1736404968862,0.0001706,94407.0,94406.0,0.64494976]
[1736404969870,0.0001706,94407.0,94406.0,0.54065]
[1736404971492,0.0001706,94407.0,94406.0,0.62265]
[1736404974027,0.0001706,94407.0,94406.0,0.72694976]
[1736404974525,0.0001706,94407.0,94406.0,0.77664976]
[1736404975564,0.0001706,94407.0,94406.0,0.54065]
[1736404975772,0.0001706,94407.0,94406.0,0.3288]
[1736404976801,0.0816706,94407.0,94406.0,0.3278]
[1736404977216,0.0816706,94407.0,94406.0,0.3258]
[1736404977611,0.0816706,94407.0,94406.0,0.3268]
[1736404977815,0.0001706,94407.0,94406.0,0.3268]
[1736404978221,0.0001706,94407.0,94406.0,0.3288]
[1736404978423,0.0001706,94407.0,94406.0,0.3278]
[1736404979626,0.0001706,94407.0,94406.0,0.3258]
[1736404979831,0.0011706,94407.0,94406.0,0.40075819]
[1736404980259,0.0001706,94407.0,94406.0,0.3258]
[1736404981304,0.0001706,94407.0,94406.0,0.3268]
[1736404981513,0.0790706,94407.0,94406.0,0.3268]
[1736404981726,0.09566582,94407.0,94406.0,0.3268]
[1736404981867,0.0790706,94407.0,94406.0,0.3268]
[1736404982070,0.0001706,94407.0,94406.0,0.3268]
[1736404982678,0.0001706,94407.0,94406.0,0.3258]
[1736404982897,0.0011706,94407.0,94406.0,0.3258]
[1736404983315,0.0001706,94407.0,94406.0,0.3258]
[1736404983615,0.0011706,94407.0,94406.0,0.3258]
[1736404986486,0.0011706,94407.0,94403.0,6.394e-05]
[1736404987578,0.0001706,94407.0,94403.0,6.394e-05]
[1736404987902,0.0011706,94407.0,94403.0,6.394e-05]
[1736404990175,0.0011706,94407.0,94404.0,0.0755]
[1736404990790,0.0011706,94407.0,94404.0,0.07449992]
[1736404991030,0.0001706,94407.0,94404.0,0.07449992]
[1736404992011,0.0001706,94407.0,94405.0,0.211853]
[1736404992228,0.0001706,94407.0,94403.0,6.394e-05]
[1736404992434,0.02472083,94407.0,94403.0,6.394e-05]
[1736404993206,0.02372083,94407.0,94403.0,6.394e-05]
[1736404993616,0.02472083,94407.0,94403.0,6.394e-05]